bitfinex/quotes_BTCUSD_20250522
["timestamp","ask_amount","ask_price","bid_price","bid_amount"]
[1747938927888,0.26795192,111680.0,111670.0,3.67040326]
[1747938928309,0.26795192,111680.0,111670.0,4.05680326]
[1747938928511,0.26795192,111680.0,111670.0,4.06575765]
[1747938928512,0.07096077,111680.0,111670.0,4.06575765]
[1747938928715,0.08886819,111680.0,111670.0,4.15530321]
[1747938928921,0.09782218,111680.0,111670.0,4.15530321]
[1747938929124,0.00150726,111680.0,111670.0,3.54927708]
[1747938929346,0.09126827,111680.0,111670.0,4.50591724]
[1747938929556,0.10917633,111680.0,111670.0,3.44517171]
[1747938929758,0.09126827,111680.0,111670.0,3.18917131]
[1747938930247,0.1002221,111680.0,111670.0,3.18917131]
[1747938930469,0.47857047,111690.0,111670.0,3.18917131]
[1747938930675,0.29965419,111690.0,111680.0,1.50972263]
[1747938930860,0.29965419,111690.0,111680.0,2.12412432]
[1747938931048,0.29965419,111690.0,111680.0,2.15096832]
[1747938931930,0.29965419,111690.0,111680.0,2.01641499]
[1747938932366,0.29965419,111690.0,111680.0,2.01645499]
[1747938932777,0.29965419,111690.0,111680.0,2.01745499]
[1747938933010,0.29965419,111690.0,111680.0,1.40081499]
[1747938933233,0.29965419,111690.0,111680.0,2.01741499]
[1747938933634,0.30065419,111690.0,111680.0,2.05021499]
[1747938933829,0.30065419,111690.0,111680.0,2.08271499]
[1747938934239,0.29965419,111690.0,111680.0,2.09683929]
[1747938934472,0.29965419,111690.0,111680.0,2.09783929]
[1747938936585,0.00015208,111690.0,111680.0,2.09783929]
[1747938937338,0.00015208,111690.0,111680.0,2.03253929]
[1747938938421,0.07215333,111760.0,111720.0,0.34]
[1747938938632,0.07215333,111760.0,111730.0,1.00212]
[1747938938633,0.17900128,111740.0,111730.0,1.00212]
[1747938938818,0.26854684,111740.0,111730.0,1.00212]
[1747938939897,0.27454684,111740.0,111730.0,1.00312]
[1747938941483,0.34504684,111740.0,111730.0,0.38828]
[1747938941687,0.34504684,111740.0,111730.0,1.00412]
[1747938942751,0.34504684,111740.0,111730.0,0.38828]
[1747938942951,0.34504684,111740.0,111730.0,1.00412]
[1747938943346,0.34504684,111740.0,111730.0,0.38828]
[1747938943545,0.34504684,111740.0,111730.0,1.00412]
[1747938945726,0.34504684,111740.0,111730.0,0.38828]
[1747938945890,0.34504684,111740.0,111730.0,1.00412]
[1747938949098,0.34504684,111740.0,111730.0,0.38828]
[1747938949245,0.34504684,111740.0,111730.0,1.00412]
[1747938952835,0.64454895,111740.0,111730.0,1.00412]
[1747938954190,0.54900339,111740.0,111730.0,1.00312]
[1747938954394,0.50533642,111740.0,111730.0,1.18112295]
[1747938954826,0.51033642,111740.0,111730.0,1.18112295]
[1747938955039,0.50638748,111740.0,111730.0,1.18112295]
[1747938955243,0.53898748,111740.0,111730.0,1.18112295]
[1747938955463,0.53398748,111740.0,111730.0,1.18112295]
[1747938955679,0.53398748,111740.0,111730.0,1.00212]
[1747938955865,0.52898748,111740.0,111730.0,1.00212]
[1747938956075,0.56138748,111740.0,111730.0,1.00212]
[1747938956836,0.56138748,111740.0,111730.0,0.65452]
[1747938957046,0.56138748,111740.0,111730.0,1.00204]
[1747938957248,0.56938748,111740.0,111730.0,0.38628]
[1747938957466,0.56938748,111740.0,111730.0,1.00204]
[1747938958865,0.56938748,111740.0,111730.0,0.65452]
[1747938959067,0.56938748,111740.0,111730.0,0.38628]
[1747938959274,0.56938748,111740.0,111730.0,1.00204]
[1747938960524,0.56938748,111740.0,111730.0,1.00208]
[1747938961337,0.50438748,111740.0,111730.0,1.00208]
[1747938962279,0.50438748,111740.0,111730.0,1.01270202]
[1747938963655,0.50438748,111740.0,111730.0,1.20065511]
[1747938963860,0.54988904,111740.0,111730.0,1.01270202]
[1747938964255,0.30750211,111740.0,111730.0,1.53170497]
[1747938964484,0.32540007,111740.0,111730.0,1.55855443]
[1747938964685,0.34329787,111740.0,111730.0,1.55855443]
[1747938965113,0.34329787,111740.0,111730.0,1.55855451]
[1747938965776,0.34329787,111740.0,111730.0,1.56205679]
[1747938966202,0.32539959,111740.0,111730.0,2.25880637]
[1747938966415,0.32539959,111740.0,111730.0,2.32360637]
[1747938966416,0.30750211,111740.0,111730.0,2.32360637]
[1747938966594,0.30750211,111740.0,111730.0,2.42769278]
[1747938966982,0.30350211,111740.0,111730.0,2.42769278]
[1747938967414,0.30550211,111740.0,111730.0,2.42769278]
[1747938968046,0.30150211,111740.0,111730.0,2.42769278]
[1747938968255,9.098e-05,111760.0,111750.0,0.20581557]
[1747938968460,0.00903808,111760.0,111750.0,5.95389557]
[1747938968665,0.00903816,111760.0,111750.0,5.95389557]
[1747938968920,0.00903808,111760.0,111750.0,5.95389557]
[1747938969069,0.009038,111760.0,111750.0,5.98629557]
[1747938969441,0.009038,111760.0,111750.0,6.08646936]
[1747938969612,9.098e-05,111760.0,111750.0,6.08646936]
[1747938970242,0.00209098,111760.0,111750.0,6.08646936]
[1747938970395,0.01103808,111760.0,111750.0,6.08646936]
[1747938970575,0.01303808,111760.0,111750.0,6.08646936]
[1747938970776,0.00409098,111760.0,111750.0,6.10101021]
[1747938970983,0.00409098,111760.0,111750.0,6.09777021]
[1747938971186,0.00409098,111760.0,111750.0,6.09781021]
[1747938971797,0.00409098,111760.0,111750.0,6.43781021]
[1747938972615,0.00409098,111760.0,111750.0,6.43777021]
[1747938972817,0.00209098,111760.0,111750.0,6.43777021]
[1747938973403,0.00209098,111760.0,111750.0,6.46178249]
[1747938973821,0.00209098,111760.0,111750.0,6.46527856]
[1747938974024,9.098e-05,111760.0,111750.0,6.46527856]
[1747938974402,9.098e-05,111760.0,111750.0,6.46627856]
[1747938974580,9.098e-05,111760.0,111750.0,6.44226628]
[1747938974740,9.098e-05,111760.0,111750.0,5.82986628]
[1747938974971,9.098e-05,111760.0,111750.0,6.44222628]
[1747938976079,9.098e-05,111760.0,111750.0,6.42810198]
[1747938976990,9.098e-05,111760.0,111750.0,5.73640113]
[1747938977120,0.21483556,111760.0,111750.0,6.25026767]
[1747938977320,0.26788846,111760.0,111750.0,5.44104]
[1747938977526,0.25894112,111760.0,111750.0,0.00104]
[1747938977731,0.25894112,111760.0,111750.0,0.38712]
[1747938977929,0.25894112,111760.0,111750.0,0.9994]
[1747938978127,0.25894112,111760.0,111750.0,1.3394]
[1747938979764,0.25894112,111760.0,111750.0,1.07128]
[1747938979966,0.25894112,111760.0,111750.0,1.3394]
[1747938980970,0.25894112,111760.0,111750.0,0.38712]
[1747938981332,0.25894112,111760.0,111750.0,0.99944]
[1747938982639,0.25894112,111760.0,111750.0,0.38712]
[1747938982838,0.25894112,111760.0,111750.0,0.99948]
[1747938986269,0.25894112,111760.0,111750.0,0.38712]
[1747938986471,0.25894112,111760.0,111750.0,0.99948]
[1747938986884,0.00894806,111750.0,111740.0,0.51898564]
[1747938987102,0.02684402,111750.0,111740.0,5.98038108]
[1747938987310,9.098e-05,111760.0,111750.0,0.26761557]
[1747938987520,0.00903808,111760.0,111750.0,5.74716113]
[1747938987734,0.01798526,111760.0,111750.0,5.74716113]
[1747938987946,9.098e-05,111760.0,111750.0,6.02986198]
[1747938988381,9.098e-05,111760.0,111750.0,6.41598198]
[1747938988642,0.01,111780.0,111770.0,0.6214196]
[1747938988852,0.01,111780.0,111770.0,6.37332516]
[1747938989665,0.01,111780.0,111770.0,6.39892911]
[1747938989902,0.01,111780.0,111770.0,6.37332516]
[1747938990095,0.01,111780.0,111770.0,5.78805244]
[1747938990315,0.01,111780.0,111770.0,6.37328516]
[1747938990448,0.01,111780.0,111770.0,5.76096516]
[1747938990645,0.011,111780.0,111770.0,6.37324516]
[1747938991328,0.011,111780.0,111770.0,5.76096516]
[1747938991536,0.02683466,111790.0,111780.0,0.55470576]
[1747938991790,0.03577928,111790.0,111780.0,6.30653132]
[1747938992025,0.00894462,111790.0,111780.0,5.96653132]
[1747938992630,0.00894414,111800.0,111790.0,0.20574217]
[1747938992779,0.01839546,111800.0,111790.0,5.26468695]
[1747938992989,0.02733984,111800.0,111790.0,5.26468695]
[1747938993955,0.02733984,111800.0,111790.0,5.24679731]
[1747938993956,0.03628438,111800.0,111790.0,5.24679731]
[1747938994158,0.20623135,111800.0,111790.0,6.0022]
[1747938994359,0.20623135,111800.0,111790.0,6.19899715]
[1747938994800,0.20623135,111800.0,111790.0,6.19899731]
[1747938995011,0.24984283,111800.0,111790.0,0.8959]
[1747938995218,0.25284283,111800.0,111790.0,0.8959]
[1747938996057,0.25584283,111800.0,111790.0,0.8959]
[1747938996855,0.25584283,111800.0,111790.0,1.2359]
[1747938997653,0.19434283,111800.0,111790.0,1.42379213]
[1747938997864,0.19434283,111800.0,111790.0,1.42379221]
[1747938998241,0.19434283,111800.0,111790.0,1.23594]
[1747938998670,0.22624283,111800.0,111790.0,2.6331]
[1747938998981,0.25694283,111800.0,111790.0,2.6331]
[1747938999199,0.00650742,111800.0,111790.0,2.47200687]
[1747938999337,0.00650742,111800.0,111790.0,2.49884193]
[1747938999338,0.03333944,111800.0,111790.0,2.49884193]
[1747938999544,0.03333944,111800.0,111790.0,2.53134193]
[1747939000346,0.04228374,111800.0,111790.0,2.53134193]
[1747939001084,0.00650742,111800.0,111790.0,2.65278749]
[1747939001317,0.0243953,111800.0,111790.0,2.67987477]
[1747939001520,0.02439522,111800.0,111790.0,2.67987477]
[1747939002056,0.0243953,111800.0,111790.0,2.67987477]
[1747939002416,0.0213953,111800.0,111790.0,3.01987477]
[1747939002613,0.02139522,111800.0,111790.0,3.01987477]
[1747939002853,0.02339522,111800.0,111790.0,3.01987477]
[1747939003253,0.00550742,111800.0,111790.0,3.03441562]
[1747939003608,0.00250742,111800.0,111790.0,3.03441562]
[1747939004032,0.00350742,111800.0,111790.0,3.03441562]
[1747939004551,0.00350742,111800.0,111790.0,3.04992286]
[1747939004749,0.00250742,111800.0,111790.0,3.04992286]
[1747939005222,0.00050742,111800.0,111790.0,3.02146058]
[1747939005409,0.00050742,111800.0,111790.0,3.04992286]
[1747939005671,0.00050742,111800.0,111790.0,3.02186058]
[1747939005910,0.0094514,111800.0,111790.0,2.32141495]
[1747939006119,0.20623103,111800.0,111790.0,2.22292437]
[1747939006340,0.26138697,111800.0,111790.0,1.25003224]
[1747939006549,0.26138697,111800.0,111790.0,1.42893911]
[1747939006754,0.20623111,111800.0,111790.0,1.44164209]
[1747939006960,0.21517565,111800.0,111790.0,1.44164217]
[1747939007171,0.21517565,111800.0,111790.0,1.43269723]
[1747939007369,0.20623159,111800.0,111790.0,1.44164225]
[1747939007816,0.00050742,111800.0,111790.0,0.83802703]
[1747939008027,0.0183953,111800.0,111790.0,1.45058703]
[1747939008225,0.02733944,111800.0,111790.0,1.45058703]
[1747939009453,0.00050742,111800.0,111790.0,1.51418703]
[1747939009661,0.00050742,111800.0,111790.0,1.60373259]
[1747939010299,0.00894278,111820.0,111810.0,0.17887487]
[1747939010503,0.00894278,111820.0,111810.0,6.25422513]
[1747939010504,0.00909449,111820.0,111810.0,6.25422513]
[1747939010711,0.02697941,111820.0,111810.0,6.25422513]
[1747939011009,0.00909449,111820.0,111810.0,6.25422513]
[1747939011250,0.00909449,111820.0,111810.0,6.65782513]
[1747939011251,0.00015219,111820.0,111810.0,6.65782513]
[1747939011456,0.19095329,111820.0,111810.0,5.95483487]
[1747939011661,0.03892219,111820.0,111810.0,6.59418505]
[1747939011860,0.02997941,111820.0,111810.0,6.59418505]
[1747939012065,0.02997933,111820.0,111810.0,6.59418505]
[1747939012212,0.00115219,111820.0,111810.0,6.65778505]
[1747939012656,0.00315219,111820.0,111810.0,6.65778505]
[1747939012823,0.01209449,111820.0,111810.0,6.65778505]
[1747939013401,0.02997941,111820.0,111810.0,6.59418505]
[1747939013806,0.03892219,111820.0,111810.0,6.59418505]
[1747939014019,0.04778026,111820.0,111810.0,5.98166505]
[1747939014226,0.20875446,111820.0,111810.0,5.95483487]
[1747939014424,0.20875446,111820.0,111810.0,5.96377853]
[1747939014638,0.0298951,111820.0,111810.0,6.59418513]
[1747939015083,0.02095232,111820.0,111810.0,6.59418513]
[1747939015291,0.01186568,111820.0,111810.0,6.59418513]
[1747939015498,0.02080806,111820.0,111810.0,6.65778513]
[1747939015752,0.02080798,111820.0,111810.0,6.65778513]
[1747939015901,0.00292338,111820.0,111810.0,6.65778513]
[1747939016103,0.0118656,111820.0,111810.0,6.65778513]
[1747939016747,0.0208079,111820.0,111810.0,6.65778513]
[1747939017638,0.0386929,111820.0,111810.0,6.68624741]
[1747939017845,0.0386929,111820.0,111810.0,6.62264741]
[1747939018804,0.00292338,111820.0,111810.0,6.71573069]
[1747939019029,0.00292338,111820.0,111810.0,6.77669297]
[1747939020123,0.00292338,111820.0,111810.0,6.71573069]
[1747939020367,0.0118656,111820.0,111810.0,6.68373069]
[1747939020568,0.02080798,111820.0,111810.0,6.68373069]
[1747939021001,0.02975044,111820.0,111810.0,6.68373069]
[1747939021204,0.02975044,111820.0,111810.0,6.07121069]
[1747939021400,0.03869306,111820.0,111810.0,6.59410513]
[1747939022103,0.03869306,111820.0,111810.0,6.60823737]
[1747939022771,0.00292338,111820.0,111810.0,6.60823737]
[1747939022944,0.0118656,111820.0,111810.0,6.60823737]
[1747939023153,0.00292338,111820.0,111810.0,6.67023737]
[1747939023355,0.00292338,111820.0,111810.0,6.77432378]
[1747939023662,0.00292338,111820.0,111810.0,6.80278606]
[1747939025299,0.002,111820.0,111810.0,6.80278606]
[1747939025501,0.002,111820.0,111810.0,6.80282606]
[1747939025685,0.01788292,111830.0,111820.0,0.54568674]
[1747939025921,0.01788292,111830.0,111820.0,5.58674436]
[1747939026096,0.25902692,111830.0,111820.0,4.69339888]
[1747939026716,0.25902692,111830.0,111820.0,4.70234182]
[1747939026925,0.27629833,111840.0,111830.0,0.17884288]
[1747939027123,0.25841653,111840.0,111830.0,1.9074]
[1747939027326,0.25006807,111840.0,111830.0,1.9074]
[1747939027859,0.25006807,111840.0,111830.0,2.51984]
[1747939028253,0.25006807,111840.0,111830.0,2.69868288]
[1747939028414,0.25006807,111840.0,111830.0,2.51984]
[1747939029007,0.25306807,111840.0,111830.0,2.69868288]
[1747939029426,0.25306807,111840.0,111830.0,2.69872288]
[1747939029628,0.26141933,111840.0,111830.0,2.69872288]
[1747939029841,0.26441933,111840.0,111830.0,2.69872288]
[1747939030472,0.26441933,111840.0,111830.0,2.70766502]
[1747939030703,0.25606807,111840.0,111830.0,2.69872288]
[1747939032923,0.24712689,111840.0,111830.0,2.69872288]
[1747939033297,0.0238818,111840.0,111830.0,2.74880692]
[1747939033518,0.21164987,111840.0,111830.0,2.70766502]
[1747939033681,0.0238818,111840.0,111830.0,2.716607]
[1747939033887,0.02388172,111840.0,111830.0,2.7344904]
[1747939034131,0.0328229,111840.0,111830.0,2.72554882]
[1747939034328,0.0328229,111840.0,111830.0,2.73449048]
[1747939034674,0.0328229,111840.0,111830.0,2.73449056]
[1747939034803,0.0328229,111840.0,111830.0,2.72554882]
[1747939035008,0.0328229,111840.0,111830.0,2.73449048]
[1747939035205,0.04176416,111840.0,111830.0,2.73449056]
[1747939035426,0.04176416,111840.0,111830.0,2.74343222]
[1747939035831,0.03282282,111840.0,111830.0,2.74343166]
[1747939036034,0.02388172,111840.0,111830.0,2.74343166]
[1747939036419,0.006,111840.0,111830.0,3.08343166]
[1747939036654,0.0149407,111840.0,111830.0,3.11363166]
[1747939036858,0.006,111840.0,111830.0,3.11363166]
[1747939036982,0.01494062,111840.0,111830.0,3.11363166]
[1747939037185,0.03282234,111840.0,111830.0,3.11363166]
[1747939037385,0.0238814,111840.0,111830.0,3.12778372]
[1747939037583,0.03282234,111840.0,111830.0,3.12778372]
[1747939039120,0.03282234,111840.0,111830.0,3.09758372]
[1747939039752,0.03282282,111840.0,111830.0,2.44937692]
[1747939039946,0.02388172,111840.0,111830.0,3.07938024]
[1747939040151,0.0328229,111840.0,111830.0,3.07938024]
[1747939040353,0.03282282,111840.0,111830.0,3.07938024]
[1747939040982,0.02388172,111840.0,111830.0,3.07938024]
[1747939041184,0.01494078,111840.0,111830.0,3.07938024]
[1747939041392,0.0238818,111840.0,111830.0,3.07938024]
[1747939041595,0.03282298,111840.0,111830.0,3.07938024]
[1747939041770,0.02388172,111840.0,111830.0,3.07938024]
[1747939041940,0.03282274,111840.0,111830.0,3.07938024]
[1747939042382,0.006,111840.0,111830.0,3.14368024]
[1747939042557,0.0149407,111840.0,111830.0,3.14368024]
[1747939042999,0.02388156,111840.0,111830.0,3.14368024]
[1747939043746,0.0149407,111840.0,111830.0,3.14368024]
[1747939044170,0.01494078,111840.0,111830.0,2.91672604]
[1747939044521,0.006,111840.0,111830.0,2.91672604]
[1747939044734,0.0149407,111840.0,111830.0,2.90257398]
[1747939044939,0.006,111840.0,111830.0,2.90257398]
[1747939045760,0.001,111840.0,111830.0,2.90257398]
[1747939046162,0.00994062,111840.0,111830.0,2.90257398]
[1747939046644,0.001,111840.0,111830.0,2.90257398]
[1747939048005,0.001,111840.0,111830.0,2.9131878]
[1747939048815,0.00994062,111840.0,111830.0,2.9131878]
[1747939049244,0.01888132,111840.0,111830.0,2.9131878]
[1747939049448,0.01888132,111840.0,111830.0,2.83994622]
[1747939049449,0.03676344,111840.0,111830.0,2.83994622]
[1747939049664,0.0457047,111840.0,111830.0,2.84888788]
[1747939049892,0.0457047,111840.0,111830.0,2.85782946]
[1747939050090,0.03676344,111840.0,111830.0,2.85782946]
[1747939050883,0.21559033,111840.0,111830.0,2.85782946]
[1747939051053,0.22453167,111840.0,111830.0,2.84888788]
[1747939051254,0.22453167,111840.0,111830.0,2.65762901]
[1747939051477,0.03676344,111840.0,111830.0,2.66657059]
[1747939052106,0.02782226,111840.0,111830.0,2.66657059]
[1747939052480,0.03676336,111840.0,111830.0,2.66657059]
[1747939052689,0.02782218,111840.0,111830.0,2.66657059]
[1747939052886,0.02782218,111840.0,111830.0,2.73147059]
[1747939053648,0.02782218,111840.0,111830.0,2.69877059]
[1747939053649,0.03676328,111840.0,111830.0,2.69877059]
[1747939053819,0.03676328,111840.0,111830.0,2.66657059]
[1747939054583,0.02782218,111840.0,111830.0,2.66657059]
[1747939054903,0.0367632,111840.0,111830.0,2.66657059]
[1747939055102,0.04570438,111840.0,111830.0,2.66657059]
[1747939055889,0.25583127,111840.0,111830.0,2.02762561]
[1747939056141,0.27789129,111840.0,111830.0,2.63966561]
[1747939056338,0.26895043,111840.0,111830.0,2.64860751]
[1747939056521,0.26895043,111840.0,111830.0,2.65754933]
[1747939056704,0.26895043,111840.0,111830.0,2.66649107]
[1747939056909,0.09012354,111840.0,111830.0,2.66649107]
[1747939057200,0.26895035,111840.0,111830.0,2.67543273]
[1747939057401,0.09012346,111840.0,111830.0,2.67543273]
[1747939057601,0.09012346,111840.0,111830.0,2.67543233]
[1747939057800,0.02782346,111840.0,111830.0,2.67543233]
[1747939058114,0.02782346,111840.0,111830.0,3.06123233]
[1747939058755,0.02782346,111840.0,111830.0,3.05229075]
[1747939058960,0.02782274,111840.0,111830.0,3.06123233]
[1747939059408,0.03676392,111840.0,111830.0,3.06123233]
[1747939062682,0.21559081,111840.0,111830.0,3.04334909]
[1747939062938,0.21559081,111840.0,111830.0,0.85499206]
[1747939062939,0.26270917,111840.0,111830.0,0.85499206]
[1747939063243,0.26270917,111840.0,111830.0,0.73999206]
[1747939063447,0.26270917,111840.0,111830.0,1.01191206]
[1747939064609,0.26270917,111840.0,111830.0,0.99776]
[1747939065017,0.26270917,111840.0,111830.0,0.38584]
[1747939065252,0.23090917,111840.0,111830.0,1.15213762]
[1747939065412,0.23090917,111840.0,111830.0,5.74755344]
[1747939065632,0.21302689,111840.0,111830.0,5.629547]
[1747939065840,0.24502689,111840.0,111830.0,4.71626]
[1747939066317,0.24502689,111840.0,111830.0,1.12476775]
[1747939066681,0.24502689,111840.0,111830.0,1.00838775]
[1747939067174,0.0662,111840.0,111830.0,5.82795969]
[1747939067385,0.02782282,111840.0,111830.0,5.84584309]
[1747939067588,0.20664971,111840.0,111830.0,5.83690151]
[1747939067759,0.20664971,111840.0,111830.0,5.84584317]
[1747939067989,0.21559097,111840.0,111830.0,5.85478475]
[1747939068198,0.22453231,111840.0,111830.0,5.84584317]
[1747939068763,0.22453231,111840.0,111830.0,5.85478475]
[1747939070020,0.22453231,111840.0,111830.0,5.83690151]
[1747939070288,0.21559161,111840.0,111830.0,5.83690151]
[1747939070642,0.21559161,111840.0,111830.0,5.83694151]
[1747939071039,0.20665067,111840.0,111830.0,5.02829475]
[1747939071242,0.26050949,111840.0,111830.0,1.16632775]
[1747939071836,0.26050949,111840.0,111830.0,1.34517063]
[1747939072036,0.26050949,111840.0,111830.0,1.35411277]
[1747939072344,0.26050949,111840.0,111830.0,1.16632775]
[1747939074544,0.26050949,111840.0,111830.0,1.34517063]
[1747939074934,0.25156823,111840.0,111830.0,0.73325063]
[1747939075397,0.25156823,111840.0,111830.0,1.34517063]
[1747939075596,0.00994062,111840.0,111830.0,1.36305451]
[1747939075821,0.01888132,111840.0,111830.0,1.37199609]
[1747939076022,0.03676312,111840.0,111830.0,1.37199609]
[1747939076339,0.03676304,111840.0,111830.0,1.37199609]
[1747939076544,0.03676304,111840.0,111830.0,1.40269609]
[1747939076545,0.0278221,111840.0,111830.0,1.40269609]
[1747939076720,0.0278221,111840.0,111830.0,1.43299609]
[1747939076929,0.0278221,111840.0,111830.0,1.4365204]
[1747939077136,0.001,111840.0,111830.0,1.7765204]
[1747939077357,0.00994062,111840.0,111830.0,1.7765204]
[1747939077876,0.0188814,111840.0,111830.0,1.7765204]
[1747939078911,0.01871128,111840.0,111830.0,1.7765204]
[1747939079113,0.0107705,111840.0,111830.0,1.7765204]
[1747939079313,0.0188814,111840.0,111830.0,1.7765204]
[1747939082408,0.002,111840.0,111830.0,1.76236834]
[1747939083295,0.002,111840.0,111830.0,1.8519139]
[1747939085072,0.02716805,111850.0,111830.0,1.84857087]
[1747939085073,0.00034811,111850.0,111830.0,1.84857087]
[1747939085274,0.00034811,111850.0,111840.0,4.99381733]
[1747939085474,0.00034811,111850.0,111840.0,4.99158251]
[1747939086665,0.00134811,111850.0,111840.0,4.99158251]
[1747939086872,0.00027104,111860.0,111850.0,0.28507241]
[1747939087074,0.00042315,111860.0,111850.0,5.61832497]
[1747939087459,0.00024523,111870.0,111860.0,0.27051318]
[1747939087659,0.00024523,111870.0,111860.0,4.99184574]
[1747939088300,0.00918361,111870.0,111860.0,4.99184574]
[1747939088471,0.02706077,111870.0,111860.0,4.85152072]
[1747939088671,0.02706077,111870.0,111860.0,4.8604599]
[1747939089010,0.00918361,111870.0,111860.0,5.4723399]
[1747939089211,0.00024523,111870.0,111860.0,5.4723399]
[1747939090179,0.00024523,111870.0,111860.0,5.5047399]
[1747939090571,0.00024523,111870.0,111860.0,5.4723399]
[1747939092406,0.00024523,111870.0,111860.0,5.48295489]
[1747939092812,0.00024523,111870.0,111860.0,5.63390045]
[1747939093363,0.00918353,111870.0,111860.0,5.63390045]
[1747939093525,0.00024523,111870.0,111860.0,5.48279489]
[1747939093890,0.01812207,111870.0,111860.0,5.48279489]
[1747939094061,0.01812199,111870.0,111860.0,5.48279489]
[1747939094360,0.01812191,111870.0,111860.0,5.48279489]
[1747939094568,0.00918361,111870.0,111860.0,5.46867443]
[1747939094775,0.00918361,111870.0,111860.0,4.85695443]
[1747939094977,0.00918353,111870.0,111860.0,5.46863443]
[1747939095707,0.01812191,111870.0,111860.0,5.46863443]
[1747939095960,0.02706029,111870.0,111860.0,5.46863443]
[1747939096300,0.02706021,111870.0,111860.0,5.46863443]
[1747939096509,0.01812175,111870.0,111860.0,5.46863443]
[1747939096875,0.00024523,111870.0,111860.0,5.46863443]
[1747939097102,0.00918361,111870.0,111860.0,5.46863443]
[1747939097503,0.00918361,111870.0,111860.0,5.48275489]
[1747939098395,0.00024523,111870.0,111860.0,5.57230045]
[1747939098598,0.00024523,111870.0,111860.0,5.63320045]
[1747939100453,0.00918345,111870.0,111860.0,4.96062045]
[1747939100622,0.01812183,111870.0,111860.0,5.48275489]
[1747939101056,0.00918345,111870.0,111860.0,5.48275489]
[1747939101191,0.01812183,111870.0,111860.0,5.48275489]
[1747939101391,0.01812183,111870.0,111860.0,5.45805944]
[1747939101792,0.00918345,111870.0,111860.0,5.45805944]
[1747939101993,0.01812175,111870.0,111860.0,5.45805944]
[1747939102685,0.01812175,111870.0,111860.0,5.48272611]
[1747939103727,0.01812175,111870.0,111860.0,4.87104611]
[1747939103929,0.06669891,111870.0,111860.0,4.87104619]
[1747939104157,0.10603769,111870.0,111860.0,5.48268619]
[1747939104335,0.09709891,111870.0,111860.0,5.48268619]
[1747939104536,0.10603785,111870.0,111860.0,5.47211484]
[1747939104769,0.10603769,111870.0,111860.0,5.48105402]
[1747939105185,0.26000164,111870.0,111860.0,5.25756224]
[1747939105389,0.26000164,111870.0,111860.0,4.64592224]
[1747939105849,0.26000164,111870.0,111860.0,5.25756224]
[1747939106077,0.26000164,111870.0,111860.0,5.243467]
[1747939107472,0.26000164,111870.0,111860.0,5.25405735]
[1747939108223,0.26000164,111870.0,111860.0,4.64241735]
[1747939108492,0.26000164,111870.0,111860.0,5.25409735]
[1747939108833,0.26000164,111870.0,111860.0,5.243507]
[1747939109446,0.3495472,111870.0,111860.0,0.61172]
[1747939109681,0.3525472,111870.0,111860.0,4e-05]
[1747939109899,0.3525472,111870.0,111860.0,0.61172]
[1747939110392,0.02682514,111830.0,111820.0,0.35788532]
[1747939110625,0.21461016,111830.0,111820.0,5.92458354]
[1747939110817,0.19672708,111830.0,111820.0,5.81715306]
[1747939111089,0.19672708,111830.0,111820.0,6.15715306]
[1747939111243,0.25218502,111830.0,111820.0,2.06591211]
[1747939111443,0.25218502,111830.0,111820.0,2.33379211]
[1747939111644,0.25218502,111830.0,111820.0,1.54961211]
[1747939111851,0.25218502,111830.0,111820.0,1.81749211]
[1747939112398,0.25218502,111830.0,111820.0,1.17979211]
[1747939112602,0.34173058,111830.0,111820.0,0.72971211]
[1747939112806,0.34173058,111830.0,111820.0,0.99767211]
[1747939113018,0.34173058,111830.0,111820.0,0.73375211]
[1747939113231,0.34173058,111830.0,111820.0,1.00167211]
[1747939113433,0.34173058,111830.0,111820.0,0.99767211]
[1747939113653,0.34173058,111830.0,111820.0,1.00167211]
[1747939113844,0.34173058,111830.0,111820.0,0.99867211]
[1747939114267,0.34173058,111830.0,111820.0,0.99767211]
[1747939114674,0.34173058,111830.0,111820.0,0.99867211]
[1747939115539,0.34173058,111830.0,111820.0,0.38691211]
[1747939115769,0.25218486,111830.0,111820.0,0.56577099]
[1747939115956,0.00894158,111830.0,111820.0,5.81830037]
[1747939116169,0.01788332,111830.0,111820.0,5.82724299]
[1747939116782,0.02682514,111830.0,111820.0,5.82724347]
[1747939117171,0.02682514,111830.0,111820.0,5.83618593]
[1747939117577,0.02682514,111830.0,111820.0,5.84512831]
[1747939117786,0.02682514,111830.0,111820.0,5.84512847]
[1747939117959,0.03576712,111830.0,111820.0,5.84512847]
[1747939118789,0.21461,111830.0,111820.0,5.82724355]
[1747939118991,0.21461,111830.0,111820.0,5.82724363]
[1747939119346,0.21461,111830.0,111820.0,5.83618633]
[1747939120195,0.21461,111830.0,111820.0,5.82724363]
[1747939120422,0.04470926,111830.0,111820.0,5.82724347]
[1747939120878,0.03576712,111830.0,111820.0,5.83618593]
[1747939121082,0.03576712,111830.0,111820.0,5.82724347]
[1747939121701,0.00894158,111830.0,111820.0,5.83618585]
[1747939121849,0.02682514,111830.0,111820.0,5.83618585]
[1747939122051,0.21461,111830.0,111820.0,5.82724355]
[1747939122258,0.02682514,111830.0,111820.0,6.17618617]
[1747939122469,0.02682514,111830.0,111820.0,6.18512855]
[1747939122785,0.0357672,111830.0,111820.0,6.18512863]
[1747939123120,0.02682514,111830.0,111820.0,6.19407101]
[1747939124257,0.02682514,111830.0,111820.0,5.55544355]
[1747939124458,0.02682514,111830.0,111820.0,6.18500855]
[1747939124860,0.20566842,111830.0,111820.0,5.70241911]
[1747939125086,0.25318486,111830.0,111820.0,1.30483211]
[1747939125863,0.25318486,111830.0,111820.0,1.48369099]
[1747939126058,0.24424288,111830.0,111820.0,1.30483211]
[1747939127398,0.24424288,111830.0,111820.0,1.25653211]
[1747939127625,0.33378844,111830.0,111820.0,0.73067211]
[1747939127830,0.33378844,111830.0,111820.0,0.99863211]
[1747939130634,0.32910073,111830.0,111820.0,0.99863211]
[1747939131182,0.32910073,111830.0,111820.0,0.99867211]
[1747939131773,0.23955517,111830.0,111820.0,0.99867211]
[1747939131947,0.20675517,111830.0,111820.0,0.99867211]
[1747939132712,0.23915517,111830.0,111820.0,0.99867211]
[1747939134122,0.23915517,111830.0,111820.0,0.73067211]
[1747939134326,0.23915517,111830.0,111820.0,0.99867211]
[1747939134671,0.32870073,111830.0,111820.0,0.99867211]
[1747939135084,0.32870073,111830.0,111820.0,0.99871211]
[1747939135710,0.32870073,111830.0,111820.0,0.38695211]
[1747939136074,0.32870073,111830.0,111820.0,0.99871211]
[1747939136208,0.23915517,111830.0,111820.0,0.99871211]
[1747939136866,0.17415517,111830.0,111820.0,0.99871211]
[1747939141143,0.23942633,111830.0,111820.0,0.99871211]
[1747939141377,0.23835517,111830.0,111820.0,0.99871211]
[1747939144535,0.17415517,111830.0,111820.0,0.99871211]
[1747939144760,0.17522633,111830.0,111820.0,0.99871211]
[1747939144895,0.23872633,111830.0,111820.0,0.99871211]
[1747939145115,0.17415517,111830.0,111820.0,0.99871211]
[1747939145296,0.17415517,111830.0,111820.0,2.08981211]